fUSD/lending_fUSD_20260202
["ID","MTS","AMOUNT","RATE_DAILY","PERIOD"]
[404301477,1770048640672,-500.0,0.00013698,2]
[404301478,1770048640681,-500.0,0.00013698,2]
[404301479,1770048640690,-500.0,0.00013698,2]
[404301480,1770048640700,-500.0,0.00013698,2]
[404301481,1770048640709,-500.0,0.00013698,2]
[404301482,1770048640718,-500.0,0.00013698,2]
[404301483,1770048640728,-500.0,0.00013698,2]
[404301484,1770048640737,-500.0,0.00013698,2]
[404301485,1770048640746,-500.0,0.00013698,2]
[404301486,1770048640756,-500.0,0.00013698,2]
[404301487,1770048640765,-500.0,0.00013698,2]
[404301488,1770048640775,-500.0,0.00013698,2]
[404301489,1770048640784,-500.0,0.00013698,2]
[404301490,1770048640794,-500.0,0.00013698,2]
[404301491,1770048640803,-500.0,0.00013698,2]
[404301492,1770048640812,-504.58121564,0.00013698,2]
[404301493,1770048640822,-500.0,0.00013698,2]
[404301494,1770048640831,-500.0,0.00013698,2]
[404301495,1770048640840,-500.0,0.00013698,2]
[404301496,1770048640850,-500.0,0.00013698,2]
[404301497,1770048640859,-500.0,0.00013698,2]
[404301498,1770048640868,-500.0,0.00013698,2]
[404301499,1770048640877,-500.0,0.00013698,2]
[404301500,1770048640887,-500.0,0.00013698,2]
[404301501,1770048640896,-512.55184272,0.00013698,2]
[404301502,1770048640906,-1060.96,0.00013698,2]
[404301503,1770048640915,-1060.96,0.00013698,2]
[404301504,1770048640924,-1060.96,0.00013698,2]
[404301505,1770048640933,-1060.96,0.00013698,2]
[404301506,1770048640943,-1060.96,0.00013698,2]
[404301507,1770048640952,-1060.96,0.00013698,2]
[404301508,1770048640961,-1060.96,0.00013698,2]
[404301509,1770048640971,-1060.96,0.00013698,2]
[404301510,1770048640980,-1060.96,0.00013698,2]
[404301511,1770048640990,-1060.96,0.00013698,2]
[404301512,1770048640999,-1060.96,0.00013698,2]
[404301513,1770048641008,-1060.96,0.00013698,2]
[404301514,1770048641018,-1060.96,0.00013698,2]
[404301515,1770048641027,-1060.96,0.00013698,2]
[404301516,1770048641035,-1060.96,0.00013698,2]
[404301517,1770048641045,-1060.96,0.00013698,2]
[404301518,1770048641054,-1060.96,0.00013698,2]
[404301519,1770048641063,-1060.96,0.00013698,2]
[404301520,1770048641072,-1060.96,0.00013698,2]
[404301521,1770048641081,-500.0,0.00013698,2]
[404301522,1770048641090,-500.0,0.00013698,2]
[404301523,1770048641099,-500.0,0.00013698,2]
[404301524,1770048641109,-312.15594151,0.00013698,2]
[404301525,1770048641119,-1017.42,0.00013698,2]
[404301526,1770048641129,-1017.42,0.00013698,2]
[404301527,1770048641140,-1017.42,0.00013698,2]
[404301528,1770048641149,-1017.42,0.00013698,2]
[404301529,1770048641159,-1017.42,0.00013698,2]
[404301530,1770048641170,-1017.42,0.00013698,2]
[404301531,1770048641180,-1017.42,0.00013698,2]
[404301532,1770048641190,-1017.42,0.00013698,2]
[404301533,1770048641199,-1017.42,0.00013698,2]
[404301534,1770048641209,-1017.42,0.00013698,2]
[404301535,1770048641218,-1017.42,0.00013698,2]
[404301536,1770048641227,-1017.42,0.00013698,2]
[404301537,1770048641235,-1017.42,0.00013698,2]
[404301538,1770048641245,-1017.42,0.00013698,2]
[404301539,1770048641254,-1017.42,0.00013698,2]
[404301540,1770048641263,-1017.42,0.00013698,2]
[404301541,1770048641272,-1017.42,0.00013698,2]
[404301542,1770048641281,-1017.42,0.00013698,2]
[404301543,1770048641290,-1017.42,0.00013698,2]
[404301544,1770048641299,-500.0,0.00013698,2]
[404301545,1770048641308,-500.0,0.00013698,2]
[404301546,1770048641317,-500.0,0.00013698,2]
[404301547,1770048641326,-500.0,0.00013698,2]
[404301548,1770048641336,-500.0,0.00013698,2]
[404301549,1770048641345,-599.45758989,0.00013698,2]
[404301550,1770048641354,-513.79,0.00013698,2]
[404301551,1770048641363,-513.79,0.00013698,2]
[404301552,1770048641372,-513.79,0.00013698,2]
[404301553,1770048641381,-513.79,0.00013698,2]
[404301554,1770048641391,-513.79,0.00013698,2]
[404301555,1770048641400,-513.79,0.00013698,2]
[404301556,1770048641409,-513.79,0.00013698,2]
[404301557,1770048641419,-513.79,0.00013698,2]
[404301558,1770048641428,-513.79,0.00013698,2]
[404301559,1770048641438,-513.79,0.00013698,2]
[404301560,1770048641447,-513.79,0.00013698,2]
[404301561,1770048641457,-513.79,0.00013698,2]
[404301562,1770048641466,-513.79,0.00013698,2]
[404301563,1770048641475,-513.79,0.00013698,2]
[404301564,1770048641484,-513.79,0.00013698,2]
[404301565,1770048641494,-513.79,0.00013698,2]
[404301566,1770048641503,-513.79,0.00013698,2]
[404301567,1770048641512,-513.79,0.00013698,2]
[404301568,1770048641522,-513.79,0.00013698,2]
[404301569,1770048641531,-279.17200518,0.00013698,2]
[404301570,1770048641541,-520.18,0.00013698,2]
[404301571,1770048641550,-520.18,0.00013698,2]
[404301572,1770048641559,-520.18,0.00013698,2]
[404301573,1770048641571,-520.18,0.00013698,2]
[404301574,1770048641580,-520.18,0.00013698,2]
[404301575,1770048641591,-520.18,0.00013698,2]
[404301576,1770048641600,-520.18,0.00013698,2]
[404301577,1770048641611,-520.18,0.00013698,2]
[404301578,1770048641620,-520.18,0.00013698,2]
[404301579,1770048641629,-520.18,0.00013698,2]
[404301580,1770048641639,-520.18,0.00013698,2]
[404301581,1770048641649,-520.18,0.00013698,2]
[404301582,1770048641658,-520.18,0.00013698,2]
[404301583,1770048641669,-520.18,0.00013698,2]
[404301584,1770048641678,-520.18,0.00013698,2]
[404301585,1770048641687,-520.18,0.00013698,2]
[404301586,1770048641696,-520.18,0.00013698,2]
[404301587,1770048641706,-520.18,0.00013698,2]
[404301588,1770048641715,-520.18,0.00013698,2]
[404301589,1770048641725,-640.79,0.00013698,2]
[404301590,1770048641735,-640.79,0.00013698,2]
[404301591,1770048641744,-640.79,0.00013698,2]
[404301592,1770048641753,-640.79,0.00013698,2]
[404301593,1770048641762,-640.79,0.00013698,2]
[404301594,1770048641771,-640.79,0.00013698,2]
[404301595,1770048641780,-640.79,0.00013698,2]
[404301596,1770048641789,-640.79,0.00013698,2]
[404301597,1770048641798,-640.79,0.00013698,2]
[404301598,1770048641807,-640.79,0.00013698,2]
[404301599,1770048641816,-640.79,0.00013698,2]
[404301600,1770048641825,-640.79,0.00013698,2]
[404301601,1770048641835,-640.79,0.00013698,2]
[404301602,1770048641844,-640.79,0.00013698,2]
[404301603,1770048641853,-640.79,0.00013698,2]
[404301604,1770048641863,-640.79,0.00013698,2]
[404301605,1770048641872,-640.79,0.00013698,2]
[404301606,1770048641882,-640.79,0.00013698,2]
[404301607,1770048641891,-535.53919898,0.00013698,2]
[404301608,1770048641900,-640.79,0.00013698,2]
[404301609,1770048641910,-500.0,0.00013698,2]
[404301610,1770048641919,-500.0,0.00013698,2]
[404301611,1770048641928,-500.0,0.00013698,2]
[404301612,1770048641937,-500.0,0.00013698,2]
[404301613,1770048641947,-500.0,0.00013698,2]
[404301614,1770048641956,-500.0,0.00013698,2]
[404301615,1770048641965,-334.5135457,0.00013698,2]
[404301616,1770048641974,-500.0,0.00013698,2]
[404301617,1770048641983,-500.0,0.00013698,2]
[404301618,1770048641993,-500.0,0.00013698,2]
[404301619,1770048642002,-500.0,0.00013698,2]
[404301620,1770048642011,-500.0,0.00013698,2]
[404301621,1770048642021,-500.0,0.00013698,2]
[404301622,1770048642030,-500.0,0.00013698,2]
[404301623,1770048642039,-500.0,0.00013698,2]
[404301624,1770048642048,-500.0,0.00013698,2]
[404301625,1770048642057,-500.0,0.00013698,2]
[404301626,1770048642067,-500.0,0.00013698,2]
[404301627,1770048642076,-500.0,0.00013698,2]
[404301628,1770048642085,-500.0,0.00013698,2]
[404301629,1770048642095,-500.0,0.00013698,2]
[404301630,1770048642104,-500.0,0.00013698,2]
[404301631,1770048642113,-500.0,0.00013698,2]
[404301632,1770048642122,-500.0,0.00013698,2]
[404301633,1770048642131,-500.0,0.00013698,2]
[404301634,1770048642140,-561.99539873,0.00013698,2]
[404301635,1770048642150,-527.83,0.00013698,2]
[404301636,1770048642159,-527.83,0.00013698,2]
[404301637,1770048642169,-527.83,0.00013698,2]
[404301638,1770048642179,-527.83,0.00013698,2]
[404301639,1770048642188,-527.83,0.00013698,2]
[404301640,1770048642197,-527.83,0.00013698,2]
[404301641,1770048642207,-527.83,0.00013698,2]
[404301642,1770048642216,-527.83,0.00013698,2]
[404301643,1770048642225,-2271.79,0.00013699,2]
[404301644,1770048642234,-200.0,0.00013699,2]
[404301645,1770048642243,-711.64,0.00013699,2]
[404301646,1770048642253,-1678.22,0.000137,2]
[404301647,1770048642262,-1678.22,0.000137,2]
[404301648,1770048642272,-1678.22,0.000137,2]
[404301649,1770048642282,-1678.22,0.000137,2]
[404301650,1770048642291,-1678.22,0.000137,2]
[404301651,1770048642301,-25119.90566181,0.00013721,2]
[404301652,1770048642310,-22031.91039811,0.00013725,2]
[404301653,1770048642319,-1242.30663864,0.00013784,2]
[404301654,1770048642329,-500.0,0.00013872,2]
[404301655,1770048642339,-500.0,0.00013872,2]
[404301656,1770048642348,-500.0,0.00013872,2]
[404301657,1770048642358,-500.0,0.00013872,2]
[404301658,1770048642367,-500.0,0.00013872,2]
[404301659,1770048642376,-500.0,0.00013872,2]
[404301660,1770048642386,-617.4,0.00013872,2]
[404301661,1770048642395,-534.26147743,0.00013898,2]
[404301662,1770048642404,-25119.90566181,0.00013929,2]
[404301663,1770048642413,-203.93,0.00013951,2]
[404301664,1770048642423,-500.0,0.00013973,2]
[404301665,1770048642432,-543.12258786,0.00013973,2]
[404301666,1770048642441,-500.0,0.00013973,2]
[404301667,1770048642450,-164.70227396,0.00013973,2]
[404301668,1770048642459,-541.62569807,0.00013973,2]
[404301669,1770048642468,-500.0,0.00013973,2]
[404301670,1770048642477,-170.36367963,0.00013973,2]
[404301671,1770048642487,-569.16951839,0.00013973,2]
[404301672,1770048642496,-500.0,0.00013973,2]
[404301673,1770048642505,-500.0,0.00013973,2]
[404301674,1770048642515,-500.0,0.00013973,2]
[404301675,1770048642524,-500.0,0.00013973,2]
[404301676,1770048642533,-500.0,0.00013973,2]
[404301677,1770048642542,-544.91692471,0.00013973,2]
[404301678,1770048642551,-500.0,0.00013973,2]
[404301679,1770048642560,-500.0,0.00013973,2]
[404301680,1770048642572,-500.0,0.00013973,2]
[404301681,1770048642582,-500.0,0.00013973,2]
[404301682,1770048642592,-181.57502123,0.00013973,2]
[404301683,1770048642602,-500.0,0.00013973,2]
[404301684,1770048642611,-500.0,0.00013973,2]
[404301685,1770048642621,-500.0,0.00013973,2]
[404301686,1770048642630,-500.0,0.00013973,2]
[404301687,1770048642640,-500.0,0.00013973,2]
[404301688,1770048642649,-500.0,0.00013973,2]
[404301689,1770048642658,-500.12230816,0.00013973,2]
[404301690,1770048642668,-500.0,0.00013973,2]
[404301691,1770048642678,-163.90719075,0.00013973,2]
[404301692,1770048642687,-500.0,0.00013973,2]
[404301693,1770048642696,-500.0,0.00013973,2]
[404301694,1770048642705,-500.0,0.00013973,2]
[404301695,1770048642715,-500.0,0.00013973,2]
[404301696,1770048642723,-500.0,0.00013973,2]
[404301697,1770048642733,-5000.0,0.00014,2]
[404301698,1770048642742,-200.896366,0.00014,2]
[404301699,1770048642751,-22031.91039811,0.00014039,2]
[404301700,1770048642760,-166.66,0.00014093,2]
[404301701,1770048642769,-25119.90566181,0.00014137,2]
[404301702,1770048642778,-220.62335577,0.00014187,2]
[404301703,1770048642787,-500.0,0.00014187,2]
[404301704,1770048642796,-255.0,0.00014203,2]
[404301705,1770048642805,-1000.0,0.00014238,2]
[404301706,1770048642814,-366.58671911,0.00014247,2]
[404301707,1770048642823,-500.0,0.00014247,2]
[404301708,1770048642832,-500.0,0.00014247,2]
[404301709,1770048642843,-500.0,0.00014247,2]
[404301710,1770048642852,-500.0,0.00014247,2]
[404301711,1770048642861,-617.4,0.00014247,2]
[404301712,1770048642870,-617.4,0.00014247,2]
[404301713,1770048642879,-617.4,0.00014247,2]
[404301714,1770048642889,-617.4,0.00014247,2]
[404301715,1770048642898,-420.0,0.00014251,2]
[404301716,1770048642908,-313.45864486,0.00014255,2]
[404301717,1770048642918,-333.0,0.00014256,2]
[404301718,1770048642928,-300.0,0.00014256,2]
[404301719,1770048642938,-1680.0,0.00014294,2]
[404301720,1770048642948,-328.60535544,0.00014299,2]
[404301721,1770048642957,-1242.30663864,0.00014328,2]
[404301722,1770048642967,-25119.90566181,0.00014345,2]
[404301723,1770048642976,-22031.91039811,0.00014353,2]
[404301724,1770048642985,-2271.79,0.00014384,2]
[404301725,1770048642995,-1242.30663864,0.0001447,2]
[404301726,1770048643004,-5000.0,0.000145,2]
[404301727,1770048643015,-166.66,0.00014517,2]
[404301728,1770048643025,-723.77841226,0.00014521,2]
[404301729,1770048643034,-1082.73923754,0.00014521,2]
[404301730,1770048643043,-233.72893135,0.00014521,2]
[404301731,1770048643051,-1000.0,0.00014521,2]
[404301732,1770048643060,-1000.0,0.00014521,2]
[404301733,1770048643070,-1000.0,0.00014521,2]
[404301734,1770048643079,-1000.0,0.00014521,2]
[404301735,1770048643089,-501.171316,0.00014521,2]
[404301736,1770048643099,-1000.0,0.00014521,2]
[404301737,1770048643108,-1037.01217783,0.00014521,2]
[404301738,1770048643119,-1000.0,0.00014521,2]
[404301739,1770048643129,-501.77480883,0.00014521,2]
[404301740,1770048643140,-1000.0,0.00014521,2]
[404301741,1770048643152,-156.95111861,0.00014521,2]
[404301742,1770048643162,-1000.0,0.00014521,2]
[404301743,1770048643171,-548.87500636,0.00014521,2]
[404301744,1770048643180,-911.8365552,0.00014521,2]
[404301745,1770048643189,-1020.60707483,0.00014521,2]
[404301746,1770048643199,-1000.0,0.00014521,2]
[404301747,1770048643208,-1000.0,0.00014521,2]
[404301748,1770048643218,-152.81544497,0.00014521,2]
[404301749,1770048643423,-1000.0,0.00014521,2]
[404301750,1770048643434,-1000.0,0.00014521,2]
[404301751,1770048643444,-546.2635897,0.00014521,2]
[404301752,1770048643454,-25119.90566181,0.00014552,2]
[404301753,1770048643463,-151.0,0.00014631,2]
[404301754,1770048643473,-22031.91039811,0.00014666,2]
[404301755,1770048643482,-534.26147743,0.00014699,2]
[404301756,1770048643491,-151.0,0.00014701,2]
[404301757,1770048643500,-151.0,0.00014701,2]
[404301758,1770048643510,-151.0,0.00014701,2]
[404301759,1770048643519,-500.0,0.00014735,2]
[404301760,1770048643528,-25119.90566181,0.0001476,2]
[404301761,1770048643538,-347.42,0.00014893,2]
[404301762,1770048643547,-166.66,0.0001494,2]
[404301763,1770048643557,-25119.90566181,0.00014968,2]
[404301764,1770048643567,-22031.91039811,0.0001498,2]
[404301766,1770048643579,-250.0,0.00015,2]
[404301768,1770048643590,-5000.0,0.00015,2]
[404301769,1770048643599,-1500.0,0.00015068,2]
[404301770,1770048643610,-617.67942522,0.00015068,2]
[404301771,1770048643619,-987.48417293,0.00015068,2]
[404301772,1770048643629,-1500.0,0.00015068,2]
[404301773,1770048643639,-1500.0,0.00015068,2]
[404301774,1770048643651,-453.96398478,0.00015068,2]
[404301776,1770048643661,-1500.0,0.00015068,2]
[404301777,1770048643671,-506.79391477,0.00015068,2]
[404301778,1770048643681,-1500.0,0.00015068,2]
[404301779,1770048643691,-1013.1611986,0.00015068,2]
[404301780,1770048643701,-1500.0,0.00015068,2]
[404301783,1770048643710,-854.38080813,0.00015068,2]
[404301787,1770048643720,-2271.79,0.00015068,2]
[404301791,1770048643731,-1242.30663864,0.00015156,2]
[404301793,1770048643741,-500.0,0.00015283,2]
[404301795,1770048643751,-22031.91039811,0.00015294,2]
[404301797,1770048643761,-773.23,0.00015338,2]
[404301799,1770048643771,-2252.48906263,0.000154,2]
[404301800,1770048643780,-690.75334192,0.000154,2]
[404301801,1770048643791,-346.96628676,0.000154,2]
[404301802,1770048643800,-433.0,0.00015407,2]
[404301803,1770048643810,-163.34993731,0.00015473,2]
[404301804,1770048643819,-163.12661798,0.00015473,2]
[404301805,1770048643828,-500.46237197,0.00015473,2]
[404301806,1770048643840,-500.0,0.00015473,2]
[404301807,1770048643850,-500.0,0.00015473,2]
[404301808,1770048643860,-574.06272579,0.00015473,2]
[404301809,1770048643869,-500.0,0.00015473,2]
[404301810,1770048643878,-500.0,0.00015473,2]
[404301811,1770048643888,-500.0,0.00015473,2]
[404301812,1770048643900,-500.0,0.00015473,2]
[404301813,1770048643909,-500.0,0.00015473,2]
[404301814,1770048643919,-163.46067997,0.00015473,2]
[404301815,1770048643928,-500.0,0.00015473,2]
[404301816,1770048643938,-161.45537985,0.00015473,2]
[404301817,1770048643948,-336.43827265,0.00015473,2]
[404301818,1770048643958,-500.0,0.00015473,2]
[404301819,1770048643967,-500.0,0.00015473,2]
[404301820,1770048643976,-500.0,0.00015473,2]
[404301821,1770048643986,-500.0,0.00015473,2]
[404301822,1770048643995,-500.0,0.00015473,2]
[404301823,1770048644004,-500.0,0.00015473,2]
[404301824,1770048644014,-500.0,0.00015473,2]
[404301825,1770048644023,-500.0,0.00015473,2]
[404301826,1770048644033,-500.0,0.00015473,2]
[404301827,1770048644042,-500.0,0.00015473,2]
[404301828,1770048644052,-522.30858015,0.00015473,2]
[404301829,1770048644061,-500.6120606,0.00015473,2]
[404301830,1770048644072,-500.0,0.00015473,2]
[404301831,1770048644082,-559.67308476,0.00015473,2]
[404301832,1770048644094,-500.62768041,0.00015473,2]
[404301833,1770048644104,-500.0,0.00015473,2]
[404301834,1770048644113,-500.0,0.00015473,2]
[404301835,1770048644122,-500.0,0.00015473,2]
[404301836,1770048644134,-500.0,0.00015473,2]
[404301837,1770048644144,-160.54295648,0.00015473,2]
[404301838,1770048644154,-500.40906893,0.00015473,2]
[404301839,1770048644164,-500.0,0.00015473,2]
[404301840,1770048644173,-464.35211832,0.00015473,2]
[404301841,1770048644183,-151.07783782,0.00015473,2]
[404301842,1770048644192,-486.90150068,0.00015473,2]
[404301843,1770048644202,-500.0,0.00015473,2]
[404301844,1770048644211,-500.0,0.00015473,2]
[404301845,1770048644221,-500.0,0.00015473,2]
[404301846,1770048644231,-500.0,0.00015473,2]
[404301847,1770048644240,-500.41005015,0.00015473,2]
[404301848,1770048644250,-512.94754167,0.00015473,2]
[404301849,1770048644259,-500.63586771,0.00015473,2]
[404301850,1770048644268,-500.0,0.00015473,2]
[404301851,1770048644278,-500.0,0.00015473,2]
[404301852,1770048644288,-500.0,0.00015473,2]
[404301853,1770048644297,-500.0,0.00015473,2]
[404301854,1770048644307,-500.0,0.00015473,2]
[404301855,1770048644316,-500.0,0.00015473,2]
[404301856,1770048644326,-500.0,0.00015473,2]
[404301857,1770048644336,-500.0,0.00015473,2]
[404301858,1770048644346,-200.70028911,0.00015473,2]
[404301859,1770048644355,-500.0,0.00015473,2]
[404301860,1770048644365,-500.0,0.00015473,2]
[404301861,1770048644374,-500.0,0.00015473,2]
[404301862,1770048644383,-550.09529227,0.00015473,2]
[404301863,1770048644393,-565.00011393,0.00015473,2]
[404301864,1770048644403,-185.46503654,0.00015473,2]
[404301865,1770048644412,-500.0,0.00015473,2]
[404301866,1770048644422,-500.0,0.00015473,2]
[404301867,1770048644432,-500.0,0.00015473,2]
[404301868,1770048644441,-500.0,0.00015473,2]
[404301869,1770048644450,-500.0,0.00015473,2]
[404301870,1770048644460,-500.0,0.00015473,2]
[404301871,1770048644470,-500.0,0.00015473,2]
[404301872,1770048644479,-500.0,0.00015473,2]
[404301873,1770048644489,-500.0,0.00015473,2]
[404301874,1770048644499,-500.0,0.00015473,2]
[404301875,1770048644508,-534.26147743,0.00015499,2]
[404301876,1770048644518,-328.60535544,0.00015499,2]
[404301877,1770048644528,-205.83607011,0.00015499,2]
[404301878,1770048644538,-5000.0,0.000155,2]
[404301879,1770048644548,-22031.91039811,0.00015607,2]
[404301880,1770048644557,-868.9,0.00015612,2]
[404301881,1770048644569,-773.23,0.00015612,2]
[404301882,1770048644581,-2000.0,0.00015616,2]
[404301883,1770048644591,-169.47739756,0.00015616,2]
[404301884,1770048644601,-1270.24622109,0.00015616,2]
[404301885,1770048644611,-1809.50611672,0.00015616,2]
[404301886,1770048644620,-2000.0,0.00015616,2]
[404301887,1770048644631,-2000.0,0.00015616,2]
[404301888,1770048644640,-159.65843549,0.00015625,2]
[404301889,1770048644651,-587.0,0.00015629,2]
[404301890,1770048644661,-500.0,0.00015699,2]
[404301891,1770048644671,-2351.0,0.00015724,2]
[404301892,1770048644680,-649.36910503,0.00015737,2]
[404301893,1770048644692,-1273.29157306,0.00015737,2]
[404301894,1770048644702,-174.48261702,0.00015737,2]
[404301895,1770048644712,-4173.74670489,0.00015737,2]
[404301896,1770048644721,-2271.79,0.00015753,2]
[404301897,1770048644731,-1858.23997362,0.00015787,2]
[404301898,1770048644742,-4903.92469062,0.00015787,2]
[404301899,1770048644752,-8651.10443502,0.00015787,2]
[404301900,1770048644762,-12941.53484621,0.00015787,2]
[404301901,1770048644771,-1000.0,0.0001582,2]
[404301902,1770048644780,-500.0,0.00015831,2]
[404301903,1770048644790,-868.9,0.00015886,2]
[404301904,1770048644799,-773.23,0.00015886,2]
[404301905,1770048644809,-1000.0,0.00015918,2]
[404301906,1770048644819,-22031.91039811,0.00015921,2]
[404301907,1770048644828,-5000.0,0.0001596,2]
[404301908,1770048644839,-250.0,0.00015964,2]
[404301909,1770048644848,-5000.0,0.00016,2]
[404301910,1770048644858,-200.0,0.00016,2]
[404301911,1770048644867,-769.8904873,0.00016021,2]
[404301912,1770048644877,-513.51105773,0.00016021,2]
[404301913,1770048644886,-1000.0,0.00016021,2]
[404301914,1770048644896,-1000.0,0.00016021,2]
[404301915,1770048644906,-1000.0,0.00016021,2]
[404301916,1770048644915,-1000.0,0.00016021,2]
[404301917,1770048644925,-1000.0,0.00016021,2]
[404301918,1770048644935,-1000.0,0.00016021,2]
[404301919,1770048644944,-1000.0,0.00016021,2]
[404301920,1770048644953,-1000.0,0.00016021,2]
[404301921,1770048644963,-1000.0,0.00016021,2]
[404301922,1770048644972,-1003.32803614,0.00016021,2]
[404301923,1770048644982,-1000.0,0.00016021,2]
[404301924,1770048644992,-293.82457575,0.00016021,2]
[404301925,1770048645001,-1000.0,0.00016021,2]
[404301926,1770048645011,-826.63399032,0.00016021,2]
[404301927,1770048645021,-1000.0,0.00016021,2]
[404301928,1770048645030,-305.41786048,0.00016021,2]
[404301929,1770048645040,-843.37022852,0.00016021,2]
[404301930,1770048645049,-1000.0,0.00016021,2]
[404301931,1770048645059,-1040.54063963,0.00016021,2]
[404301932,1770048645070,-1000.0,0.00016021,2]
[404301933,1770048645079,-1000.0,0.00016021,2]
[404301934,1770048645090,-1000.0,0.00016021,2]
[404301935,1770048645099,-1000.0,0.00016021,2]
[404301936,1770048645108,-1082.33207666,0.00016021,2]
[404301937,1770048645118,-500.0,0.00016021,2]
[404301938,1770048645127,-885.68955508,0.00016021,2]
[404301939,1770048645136,-1000.0,0.00016021,2]
[404301940,1770048645146,-1000.0,0.00016021,2]
[404301941,1770048645156,-1000.0,0.00016021,2]
[404301942,1770048645166,-501.6324076,0.00016021,2]
[404301943,1770048645175,-1000.0,0.00016021,2]
[404301944,1770048645185,-1000.0,0.00016021,2]
[404301945,1770048645194,-1000.0,0.00016021,2]
[404301946,1770048645203,-1000.0,0.00016021,2]
[404301947,1770048645213,-194.71422031,0.00016021,2]
[404301948,1770048645223,-371.34493106,0.00016021,2]
[404301949,1770048645232,-1000.0,0.00016021,2]
[404301950,1770048645241,-1000.0,0.00016021,2]
[404301951,1770048645251,-1000.0,0.00016021,2]
[404301952,1770048645261,-1000.0,0.00016021,2]
[404301954,1770048645270,-500.40903786,0.00016021,2]
[404301956,1770048645279,-1000.0,0.00016021,2]
[404301958,1770048645289,-1000.0,0.00016021,2]
[404301960,1770048645299,-868.9,0.0001616,2]
[404301962,1770048645308,-773.23,0.0001616,2]
[404301964,1770048645318,-2500.0,0.00016164,2]
[404301966,1770048645327,-1607.21812372,0.00016164,2]
[404301968,1770048645336,-2139.05832686,0.00016164,2]
[404301970,1770048645346,-159.65843549,0.00016276,2]
[404301971,1770048645355,-534.26147743,0.00016299,2]
[404301972,1770048645365,-500.0,0.00016379,2]
[404301973,1770048645374,-839.0,0.000164,2]
[404301974,1770048645384,-163.0,0.000164,2]
[404301975,1770048645393,-163.0,0.000164,2]
[404301976,1770048645403,-839.0,0.000164,2]
[404301977,1770048645412,-469.44,0.00016414,2]
[404301980,1770048645422,-868.9,0.00016434,2]
[404301983,1770048645432,-773.23,0.00016434,2]
[404301986,1770048645441,-2000.0,0.00016438,2]
[404301989,1770048645451,-500.0,0.00016438,2]
[404301991,1770048645461,-500.0,0.00016438,2]
[404301992,1770048645471,-500.0,0.00016438,2]
[404301993,1770048645480,-500.0,0.00016438,2]
[404301994,1770048645490,-500.0,0.00016438,2]
[404301995,1770048645499,-500.0,0.00016438,2]
[404301996,1770048645509,-500.0,0.00016438,2]
[404301997,1770048645519,-500.0,0.00016438,2]
[404301998,1770048645528,-372.61344896,0.00016438,2]
[404301999,1770048645538,-2271.79,0.00016438,2]
[404302000,1770048645547,-800.755787,0.00016438,2]
[404302001,1770048645556,-578.20924308,0.0001646,2]
[404302002,1770048645566,-1428.38747117,0.0001646,2]
[404302003,1770048645579,-250.0,0.0001646,2]
[404302004,1770048645590,-250.0,0.0001646,2]
[404302005,1770048645600,-500.0,0.0001646,2]
[404302006,1770048645610,-250.0,0.0001646,2]
[404302007,1770048645620,-500.0,0.0001646,2]
[404302008,1770048645630,-250.0,0.0001646,2]
[404302009,1770048645640,-500.0,0.0001646,2]